bitfinex/quotes_SOLUSD_20241013
["timestamp","ask_amount","ask_price","bid_price","bid_amount"]
[1728824608417,15.7189,147.77,147.73,6.7691]
[1728824608739,15.7189,147.77,147.66,11.2643]
[1728824609036,22.4861,147.77,147.73,20.0]
[1728824609211,6.3749,147.78,147.73,20.0]
[1728824609417,6.3749,147.78,147.73,26.7689]
[1728824610221,13.1417,147.78,147.73,26.7689]
[1728824610737,13.1417,147.78,147.67,23.776884]
[1728824610738,6.7674,147.77,147.68,20.0]
[1728824610918,6.7674,147.77,147.69,23.776884]
[1728824611119,6.7674,147.77,147.7,20.0]
[1728824611339,13.1418,147.78,147.73,6.769]
[1728824611718,360.631,147.72,147.69,23.776884]
[1728824611923,360.631,147.72,147.7,20.0]
[1728824612129,360.631,147.72,147.71,23.776884]
[1728824613628,360.631,147.72,147.71,30.546884]
[1728824614219,360.631,147.72,147.71,50.546884]
[1728824616724,13.1418,147.78,147.73,6.7689]
[1728824617240,380.6311,147.72,147.71,45.13030504]
[1728824617730,380.6311,147.72,147.71,43.776884]
[1728824621826,380.6311,147.72,147.71,73.776884]
[1728824623543,380.6311,147.72,147.71,43.776884]
[1728824624527,380.6311,147.72,147.71,40.676884]
[1728824625527,15.7189,147.81,147.72,20.0]
[1728824625528,6.7659,147.8,147.72,20.0]
[1728824625848,6.7659,147.8,147.73,1.35320651]
[1728824626050,15.7189,147.81,147.73,1.35320651]
[1728824626748,15.7189,147.81,147.75,20.0]
[1728824626953,15.7189,147.81,147.76,23.776884]
[1728824627854,15.7189,147.81,147.77,1.35304637]
[1728824628025,6.2342,147.82,147.78,23.776884]
[1728824628224,6.2342,147.82,147.79,1.35291225]
[1728824628945,22.0178,147.85,147.79,1.35291225]
[1728824629142,6.7641,147.84,147.78,23.776884]
[1728824629323,22.0182,147.85,147.79,1.35279914]
[1728824629532,22.0182,147.85,147.79,1.35279788]
[1728824629853,22.0182,147.85,147.78,23.776884]
[1728824631957,22.0182,147.85,147.79,20.0]
[1728824632153,22.0182,147.85,147.8,23.776884]
[1728824632530,22.0182,147.85,147.79,20.0]
[1728824632731,22.0182,147.85,147.8,23.776884]
[1728824633133,22.0182,147.85,147.78,23.776884]
[1728824633134,15.2542,147.85,147.75,4.90370593]
[1728824633438,15.2542,147.85,147.78,23.776884]
[1728824633643,15.2542,147.85,147.8,23.776884]
[1728824638359,22.0181,147.85,147.8,23.776884]
[1728824639763,15.2542,147.85,147.8,23.776884]
[1728824647148,15.562,147.89,147.83,20.0]
[1728824647354,22.3239,147.89,147.84,1.35240623]
[1728824648351,22.3239,147.89,147.83,20.0]
[1728824651055,22.3239,147.89,147.84,23.776884]
[1728824653284,15.562,147.89,147.85,1.35240669]
[1728824653656,15.562,147.89,147.86,23.776884]
[1728824653970,15.562,147.89,147.87,1.35227465]
[1728824654175,0.8262773,147.9,147.88,1.35224472]
[1728824655681,0.8262773,147.9,147.88,23.776884]
[1728824655881,0.8262773,147.9,147.89,20.0]
[1728824656587,0.8262773,147.9,147.89,43.776884]
[1728824660787,0.8262773,147.9,147.89,23.776884]
[1728824661288,0.8262773,147.9,147.89,43.776884]
[1728824666893,21.7889,147.97,147.89,45.12859274]
[1728824667091,21.7889,147.97,147.91,20.0]
[1728824667294,21.7889,147.97,147.92,1.35167865]
[1728824667867,21.7889,147.97,147.91,23.776884]
[1728824668077,21.7889,147.97,147.9,20.0]
[1728824668800,21.7889,147.97,147.92,20.0]
[1728824669397,21.7889,147.97,147.9,43.776884]
[1728824669398,15.0307,147.97,147.9,43.776884]
[1728824669710,6.7586,147.96,147.9,43.776884]
[1728824672099,6.7586,147.96,147.91,1.35173681]
[1728824672393,21.7889,147.97,147.91,1.35173681]
[1728824672604,21.7889,147.97,147.93,20.0]
[1728824672805,21.7889,147.97,147.94,1.35163926]
[1728824673891,21.7889,147.97,147.92,1.35162726]
[1728824674092,15.0307,147.97,147.92,1.35162726]
[1728824674671,15.0307,147.97,147.94,20.0]
[1728824674891,15.0307,147.97,147.95,1.3515481]
[1728824675295,6.5528,147.98,147.94,23.776884]
[1728824675487,6.5528,147.98,147.95,20.0]
[1728824675997,22.6438,148.01,147.96,23.776884]
[1728824676200,22.6438,148.01,147.97,20.0]
[1728824677403,22.6438,148.01,147.96,23.776884]
[1728824677899,22.6438,148.01,147.97,20.0]
[1728824679875,22.6438,148.01,147.96,23.776884]
[1728824686680,15.8874,148.01,147.96,23.776884]
[1728824686997,22.6437,148.01,147.97,1.35125483]
[1728824687300,22.6437,148.01,147.96,23.776884]
[1728824690811,15.8874,148.01,147.97,1.35125612]
[1728824691391,0.8262773,148.04,147.98,23.776884]
[1728824691686,0.8262773,148.04,147.99,21.35101394]
[1728824692596,0.8262773,148.04,148.0,23.776884]
[1728824693308,0.8262773,148.04,148.01,1.35099165]
[1728824696302,0.8262773,148.04,148.0,23.776884]
[1728824699630,6.7554,148.03,147.95,11.2643]
[1728824699801,7.5811773,148.04,147.95,16.13373288]
[1728824700201,0.8262773,148.04,147.95,16.13373288]
[1728824701220,0.8262773,148.04,147.96,43.776884]
[1728824701626,0.8262773,148.04,147.98,23.776884]
[1728824702127,0.8262773,148.04,147.96,43.776884]
[1728824704329,0.8262773,148.04,148.0,23.776884]
[1728824704524,0.8262773,148.04,148.02,23.776884]
[1728824704826,0.8262773,148.04,148.03,1.35079915]
[1728824705207,0.8262773,148.04,147.99,20.0]
[1728824705429,0.8262773,148.04,148.01,20.0]
[1728824705629,0.8262773,148.04,148.02,23.776884]
[1728824706015,0.8262773,148.04,148.01,20.0]
[1728824706415,0.8262773,148.04,148.02,23.776884]
[1728824708141,0.8262773,148.04,147.95,16.13373288]
[1728824708452,0.8262773,148.04,147.96,20.0]
[1728824709628,0.8262773,148.04,147.98,20.0]
[1728824709938,0.8262773,148.04,147.99,23.776884]
[1728824710138,0.8262773,148.04,148.0,20.0]
[1728824710323,0.8262773,148.04,148.01,23.776884]
[1728824711527,0.8262773,148.04,148.02,1.35087169]
[1728824711732,0.8262773,148.04,148.01,23.776884]
[1728824715129,0.8262773,148.04,148.0,20.0]
[1728824715345,0.8262773,148.04,147.96,43.776884]
[1728824716056,0.8262773,148.04,147.99,20.0]
[1728824716373,0.8262773,148.04,148.01,23.776884]
[1728824716592,0.8262773,148.04,148.02,1.35086971]
[1728824717043,0.8262773,148.04,148.01,23.776884]
[1728824718271,0.8262773,148.04,148.02,1.35086576]
[1728824718973,0.8262773,148.04,148.0,23.776884]
[1728824729573,0.8262773,148.04,148.02,23.776884]
[1728824730188,0.8262773,148.04,148.01,20.0]
[1728824730488,0.8262773,148.04,148.02,23.776884]
[1728824733587,0.8262773,148.04,148.03,23.776884]
[1728824734095,0.8262773,148.04,148.02,23.776884]
[1728824737397,0.8262773,148.04,148.01,20.0]
[1728824737398,0.8262773,148.04,148.03,23.776884]
[1728824737868,0.8262773,148.04,148.03,45.12755906]
[1728824739896,0.8262773,148.04,148.03,43.776884]
[1728824753103,0.8262773,148.04,148.03,48.47517564]
[1728824762799,0.8262773,148.04,147.98,17.68420532]
[1728824762800,0.8262773,148.04,147.99,20.0]
[1728824763003,0.8262773,148.04,147.98,6.41990532]
[1728824763201,7.2584773,148.04,147.98,11.34444425]
[1728824763514,7.2584773,148.04,147.98,4.92453893]
[1728824763690,7.2584773,148.04,147.97,8.48307961]
[1728824764004,7.2584773,148.04,147.95,8.48307961]
[1728824764512,7.2584773,148.04,147.96,20.0]
[1728824764703,7.2584773,148.04,147.99,23.776884]
[1728824765207,7.2584773,148.04,148.01,23.776884]
[1728824765424,7.2584773,148.04,148.03,23.776884]
[1728824765920,7.2584773,148.04,148.02,20.0]
[1728824766224,7.2584773,148.04,148.03,23.776884]
[1728824766728,7.2584773,148.04,148.02,20.0]
[1728824766925,7.2584773,148.04,147.97,43.776884]
[1728824767294,7.2584773,148.04,147.97,52.25996361]
[1728824767621,7.2584773,148.04,147.99,43.776884]
[1728824767809,7.2584773,148.04,148.0,1.3508331]
[1728824768010,7.2584773,148.04,147.99,43.776884]
[1728824768318,0.8262773,148.04,148.03,43.776884]
[1728824768498,0.8262773,148.04,148.03,45.12741727]
[1728824768899,0.8262773,148.04,148.03,43.776884]
[1728824769608,0.8262773,148.04,148.01,20.0]
[1728824769815,0.8262773,148.04,148.02,1.35074075]
[1728824770727,0.8262773,148.04,148.01,20.0]
[1728824771504,0.8262773,148.04,148.02,23.776884]
[1728824771725,0.8262773,148.04,148.03,20.0]
[1728824772029,0.8262773,148.04,148.03,21.35084245]
[1728824773628,0.8262773,148.04,148.03,45.12772645]
[1728824774906,0.8262773,148.04,148.03,43.776884]
[1728824778306,0.8262773,148.04,148.03,52.25996361]
[1728824778725,0.8262773,148.04,148.03,56.954416]
[1728824781028,0.8262773,148.04,148.0,28.48307961]
[1728824781206,0.8262773,148.04,148.01,1.3507127]
[1728824781413,0.8262773,148.04,148.02,8.48307961]
[1728824781607,0.8262773,148.04,148.03,21.3506734]
[1728824782530,0.8262773,148.04,148.03,45.1275574]
[1728824782831,0.8262773,148.04,148.03,43.776884]
[1728824786934,0.8262773,148.04,148.0,20.0]
[1728824787634,0.8262773,148.04,148.0,28.48307961]
[1728824788004,0.8262773,148.04,148.02,20.0]
[1728824788420,0.8262773,148.04,148.03,23.776884]
[1728824788617,0.8262773,148.04,148.03,45.12757667]
[1728824790130,0.8262773,148.04,148.03,43.776884]
[1728824804028,0.8262773,148.04,148.03,48.64418885]
[1728824821136,0.8262773,148.04,148.03,58.47778229]
[1728824821455,3.91022269,148.12,148.09,23.776884]
[1728824821693,15.3013,148.14,148.11,43.776884]
[1728824821836,15.3013,148.14,148.12,21.35006114]
[1728824822359,15.3013,148.14,148.13,23.776884]
[1728824822547,15.3013,148.14,148.11,20.0]
[1728824828075,15.3013,148.14,148.1,23.776884]
[1728824829882,15.3013,148.14,148.05,8.48307961]
[1728824830351,15.3013,148.14,148.04,5.91105892]
[1728824830551,15.3013,148.14,148.01,8.48307961]
[1728824830751,15.3013,148.11,148.01,8.48307961]
[1728824831161,6.6028,148.1,148.01,8.48307961]
[1728824831475,13.3553,148.1,148.01,8.48307961]
[1728824832559,6.6028,148.1,148.01,8.48307961]
[1728824832763,15.6784,148.09,148.01,8.48307961]
[1728824833275,22.4311,148.09,148.01,8.48307961]
[1728824833863,22.4311,148.09,148.02,20.0]
[1728824834070,22.4311,148.09,148.03,1.35080584]
[1728824834579,22.4311,148.09,148.04,20.0]
[1728824835978,6.7536,148.07,147.98,8.48307961]
[1728824836282,6.7536,148.07,147.99,20.0]
[1728824837581,6.7536,148.07,148.01,20.0]
[1728824837781,6.7536,148.07,148.02,23.776884]
[1728824838166,6.7536,148.07,148.03,20.0]
[1728824838475,15.6784,148.09,148.03,20.0]
[1728824838678,15.6784,148.09,148.04,1.35085301]
[1728824839168,15.6784,148.09,148.03,21.35084795]
[1728824839372,22.4311,148.09,148.03,21.35084795]
[1728824839765,22.4311,148.09,148.03,20.0]
[1728824843493,22.4311,148.09,148.03,21.3508789]
[1728824846296,22.4311,148.09,148.03,20.0]
[1728824846492,6.7533,148.08,148.03,20.0]
[1728824846697,6.7533,148.08,148.03,21.35087133]
[1728824848907,6.7533,148.08,148.03,20.0]
[1728824849078,15.6784,148.09,147.98,8.48307961]
[1728824849281,6.7536,148.07,147.97,7.04039951]
[1728824849498,6.7531,148.08,147.98,1.35095207]
[1728824849883,6.7531,148.08,147.98,9.83403168]
[1728824850500,6.7531,148.08,147.99,23.776884]
[1728824850706,6.7531,148.08,148.01,23.776884]
[1728824851084,15.6784,148.09,148.0,20.0]
[1728824851288,6.7535,148.07,148.01,23.776884]
[1728824851990,6.7535,148.07,148.02,1.35095563]
[1728824852398,6.7535,148.07,148.01,23.776884]
[1728824852590,6.7535,148.07,148.02,1.35095727]
[1728824854708,6.7535,148.07,148.01,23.776884]
[1728824859209,6.7535,148.07,148.02,1.35096972]
[1728824860615,6.7535,148.07,148.01,23.776884]
[1728824861513,6.7535,148.07,148.02,1.35097332]
[1728824861715,6.7535,148.07,148.01,23.776884]
[1728824862221,6.7535,148.07,148.02,1.35097278]
[1728824862623,6.7535,148.07,148.01,23.776884]
[1728824868026,6.7535,148.07,148.02,1.35097537]
[1728824868530,6.7535,148.07,148.01,1.35097577]
[1728824868827,6.7535,148.07,148.01,23.776884]
[1728824869025,6.7535,148.07,148.0,23.776884]
[1728824869327,6.7535,148.07,148.01,20.0]
[1728824872118,6.7535,148.07,148.02,1.35097645]
[1728824872308,6.7535,148.07,148.01,20.0]
[1728824875126,6.7535,148.07,148.02,1.35097925]
[1728824875628,6.7535,148.07,148.01,20.0]
[1728824875811,6.7535,148.07,148.01,21.35097947]
[1728824876609,6.7535,148.07,148.01,20.0]
[1728824877732,6.7535,148.07,148.01,21.35098038]
[1728824878044,6.7535,148.07,148.01,21.35098054]
[1728824879743,6.7535,148.07,148.01,20.0]
[1728824881322,15.6784,148.09,148.02,25.12786662]
[1728824881649,15.6784,148.09,148.04,23.776884]
[1728824883156,15.6784,148.09,148.05,1.3506733]
[1728824885733,15.6784,148.09,148.04,23.776884]
[1728824886249,15.6784,148.09,148.03,20.0]
[1728824886845,15.6784,148.09,148.04,1.35083163]
[1728824887241,15.6784,148.09,148.02,20.0]
[1728824887428,22.4314,148.09,148.04,20.0]
[1728824888059,6.7532,148.08,148.04,20.0]
[1728824889038,22.4312,148.09,148.04,21.35083479]
[1728824890361,22.4312,148.09,148.04,20.0]
[1728824890737,22.4312,148.09,148.04,21.35083324]
[1728824890936,15.6784,148.09,148.04,20.0]
[1728824891143,6.7531,148.08,148.04,20.0]
[1728824892059,6.7531,148.08,148.04,21.35083368]
[1728824892242,15.6784,148.09,148.04,21.35083368]
[1728824892543,22.4311,148.09,148.04,21.35083368]
[1728824892738,22.4311,148.09,148.04,20.0]
[1728824892960,6.7531,148.08,148.04,20.0]
[1728824893138,15.6784,148.09,148.0,20.0]
[1728824893338,6.7536,148.07,148.0,20.0]
[1728824894434,15.6784,148.09,147.99,4.81906023]
[1728824894641,6.7535,148.07,148.0,1.35110715]
[1728824894863,6.7535,148.07,147.98,19.74737961]
[1728824895030,15.6784,148.09,147.98,19.74737961]
[1728824895233,15.6784,148.09,147.99,9.83405988]
[1728824895234,6.7532,148.08,147.99,9.83405988]
[1728824895640,15.6784,148.09,148.0,43.776884]
[1728824895853,15.6784,148.09,148.04,23.776884]
[1728824897737,15.6784,148.09,148.05,1.35074836]
[1728824897940,15.6784,148.09,148.04,23.776884]
[1728824898761,15.6784,148.09,148.05,1.35074432]
[1728824899162,15.6784,148.09,148.04,23.776884]
[1728824901564,15.6784,148.09,148.0,20.0]
[1728824901565,15.6784,148.09,148.03,23.776884]
[1728824901748,15.6784,148.09,148.05,23.776884]
[1728824902068,0.09018788,148.12,148.07,23.776884]
[1728824902265,0.09018788,148.12,148.08,21.35039111]
[1728824903661,0.09018788,148.12,148.09,23.776884]
[1728824905139,0.09018788,148.12,148.08,20.0]
[1728824905342,0.09018788,148.12,148.05,43.776884]
[1728824908549,0.09018788,148.12,148.06,1.35046158]
[1728824909155,0.09018788,148.12,148.07,23.776884]
[1728824909350,0.09018788,148.12,148.08,21.35046177]
[1728824909552,0.09018788,148.12,148.05,43.776884]
[1728824909851,0.09018788,148.12,148.07,23.776884]
[1728824910166,0.09018788,148.12,148.08,21.35046018]
[1728824910379,0.09018788,148.12,148.08,1.35046018]
[1728824910670,0.09018788,148.12,148.08,20.0]
[1728824910843,0.09018788,148.12,148.08,21.35046078]
[1728824911261,0.09018788,148.12,148.08,20.0]
[1728824912951,0.09018788,148.12,148.08,21.35046435]
[1728824914053,0.09018788,148.12,148.09,23.776884]
[1728824914258,0.09018788,148.12,148.1,1.35027199]
[1728824914967,0.09018788,148.12,148.09,23.776884]
[1728824918165,0.09018788,148.12,148.07,4.69958853]
[1728824918361,0.09018788,148.12,148.08,23.776884]
[1728824921073,0.09018788,148.12,148.05,24.81116288]
[1728824921281,0.09018788,148.12,148.06,23.776884]
[1728824921459,0.09018788,148.12,148.07,20.0]
[1728824923077,0.09018788,148.12,148.07,21.35050294]
[1728824923378,0.09018788,148.12,148.07,20.0]
[1728824924572,0.09018788,148.12,148.07,21.35049991]
[1728824924785,0.09018788,148.12,148.08,23.776884]
[1728824924962,0.09018788,148.12,148.09,1.35031662]
[1728824925787,0.09018788,148.12,148.1,1.35035295]
[1728824926083,0.09018788,148.12,148.09,20.0]
[1728824928371,0.09018788,148.12,148.09,21.35030362]
[1728824929092,15.0802,148.13,148.09,21.35030362]
[1728824929272,15.0802,148.13,148.09,20.0]
[1728824932889,15.0802,148.13,148.05,4.81116288]
[1728824933074,21.8313,148.13,148.04,12.77365531]
[1728824934503,21.8313,148.13,148.06,23.776884]
[1728824934790,21.8313,148.13,148.07,20.0]
[1728824935793,15.0802,148.13,148.04,14.43290159]
[1728824935992,6.7525,148.1,148.03,4.81100731]
[1728824936167,6.7527,148.09,148.0,20.5283127]
[1728824936363,22.5652,148.09,148.0,20.5283127]
[1728824936675,22.5652,148.09,148.0,8.04974628]
[1728824937489,6.7532,148.08,148.01,20.0]
[1728824937889,6.7532,148.08,148.02,1.35095564]
[1728824940304,6.7532,148.08,148.01,20.0]
[1728824940677,15.8125,148.09,148.01,21.35101464]
[1728824940904,22.5652,148.09,148.01,21.35101464]
[1728824945911,15.8125,148.09,148.02,23.776884]
[1728824946103,15.8125,148.09,148.03,21.35088374]
[1728824946710,15.8125,148.09,148.03,20.0]
[1728824947409,15.8125,148.09,148.04,1.35089774]
[1728824948116,15.8125,148.09,148.03,21.35080325]
[1728824949186,15.8125,148.13,148.05,20.0]
[1728824949602,22.5634,148.13,148.06,1.35059915]
[1728824950497,22.5634,148.13,148.06,23.776884]
[1728824951206,22.5634,148.13,148.07,1.35058256]
[1728824951715,15.8125,148.13,148.07,20.0]
[1728824952108,15.8125,148.13,148.07,21.35049804]
[1728824953830,15.8125,148.13,148.07,20.0]
[1728824954115,15.8125,148.13,148.07,21.35050042]
[1728824956997,15.8125,148.13,148.07,20.0]
[1728824960728,22.5634,148.13,148.07,20.0]
[1728824961236,22.5634,148.13,148.05,4.79978898]
[1728824961523,22.5634,148.13,148.03,23.776884]
[1728824961723,22.5634,148.13,148.04,20.0]
[1728824962020,6.7514,148.12,148.06,20.0]
[1728824962223,6.7518,148.11,148.06,20.0]
[1728824962616,6.7518,148.11,148.02,21.35076591]
[1728824963525,6.7518,148.11,148.03,23.776884]
[1728824963700,6.7518,148.11,148.04,21.35074941]
[1728824964214,6.7518,148.11,148.04,20.0]
[1728824965735,22.7179,148.1,148.01,6.09426642]
[1728824965909,22.7179,148.1,147.95,33.5461]
[1728824965910,22.7179,148.1,147.95,23.82786642]
[1728824966111,6.7532,148.08,147.95,23.82786642]
[1728824966313,6.7532,148.08,147.96,14.59679554]
[1728824966522,6.7532,148.08,147.96,22.0420787]
[1728824967115,6.7532,148.08,147.98,20.0]
[1728824967433,6.7532,148.08,148.01,20.0]
[1728824967730,6.7532,148.08,148.02,1.35101458]
[1728824967924,6.7532,148.08,148.0,23.776884]
[1728824968154,6.7532,148.08,148.01,21.3510141]
[1728824968430,6.7532,148.08,148.01,1.3510141]
[1728824968631,6.7532,148.08,148.01,20.0]
[1728824968832,6.7532,148.08,148.02,1.35101352]
[1728824969027,6.7527,148.09,148.03,1.35101425]
[1728824969229,22.7179,148.1,148.03,1.35101425]
[1728824969436,22.7179,148.1,148.04,23.776884]
[1728824971123,22.7179,148.1,148.03,23.776884]
[1728824971436,22.7179,148.1,148.04,20.0]
[1728824973917,6.7527,148.09,148.04,20.0]
[1728824974118,6.7527,148.09,148.01,24.84405761]
[1728824974321,6.7527,148.09,148.01,21.35099147]
[1728824978749,6.7527,148.09,148.01,26.22631658]
[1728824984127,6.7527,148.09,148.01,24.87532511]
[1728824984530,6.7527,148.09,148.01,4.87532511]
[1728824984738,6.7527,148.09,148.01,23.776884]
[1728824984943,6.7527,148.09,148.02,21.35095305]
[1728824985452,6.7527,148.09,148.01,23.776884]
[1728824985643,6.7527,148.09,148.02,21.35095191]
[1728824985847,6.7527,148.09,148.01,23.776884]
[1728824986047,6.7527,148.09,148.02,20.0]
[1728824996245,6.7531,148.08,148.02,20.0]
[1728825000879,6.7531,148.08,148.02,21.35099121]
[1728825001245,6.7531,148.08,148.02,20.0]
[1728825001457,6.7528,148.09,148.02,21.35099094]
[1728825002849,6.7528,148.09,148.02,20.0]
[1728825003167,6.7531,148.08,148.02,20.0]
[1728825004453,6.7531,148.08,148.02,21.35098797]
[1728825004964,6.7528,148.09,148.02,21.35098797]
[1728825006142,6.7528,148.09,148.02,20.0]
[1728825009869,22.7179,148.1,148.02,20.0]
[1728825010081,6.7526,148.09,148.02,20.0]
[1728825010266,6.7526,148.09,148.03,1.35088827]
[1728825010566,6.7526,148.09,148.02,20.0]
[1728825012973,6.7526,148.09,148.03,1.35088568]
[1728825013873,6.7526,148.09,148.02,20.0]
[1728825017674,6.7526,148.09,148.02,21.35093]
[1728825019170,6.7526,148.09,148.02,20.0]
[1728825020863,6.7534,148.08,148.02,20.0]
[1728825021065,6.7539,148.07,148.02,20.0]
[1728825021360,6.7532,148.08,148.02,20.0]
[1728825028659,22.7179,148.1,148.02,20.0]
[1728825029594,6.7532,148.08,148.02,20.0]
[1728825030784,6.7541,148.06,147.97,7.0383238]
[1728825030987,6.7532,148.08,147.98,20.0]
[1728825031177,6.7532,148.08,147.99,1.35093443]
[1728825032076,6.7527,148.09,148.0,23.776884]
[1728825032277,6.7527,148.09,148.02,23.776884]
[1728825032472,6.7527,148.09,148.03,1.3509141]
[1728825032678,6.7527,148.09,148.02,1.35091326]
[1728825038092,6.7527,148.09,148.01,20.0]
[1728825038396,6.7527,148.09,148.02,23.776884]
[1728825039593,22.7179,148.1,148.02,23.776884]
[1728825039797,6.7539,148.07,148.02,23.776884]
[1728825040267,22.7179,148.1,148.02,23.776884]
[1728825040470,6.7531,148.08,148.02,23.776884]
[1728825047811,6.7531,148.08,147.98,20.0]
[1728825048011,6.7538,148.07,148.0,20.0]
[1728825048199,22.7179,148.1,148.0,20.0]
[1728825048393,6.754,148.06,148.0,20.0]
[1728825048705,6.754,148.06,147.98,20.0]
[1728825049217,6.7536,148.07,147.98,21.3511042]
[1728825049582,6.7536,148.07,148.0,20.0]
[1728825049784,6.7536,148.07,148.0,21.35109922]
[1728825050812,6.7536,148.07,148.0,20.0]
[1728825051005,6.7536,148.07,148.01,1.35110022]
[1728825051506,6.753,148.09,148.02,23.776884]
[1728825051695,6.753,148.09,148.03,1.35090583]
[1728825052108,6.753,148.09,148.02,23.776884]
[1728825052492,6.753,148.09,148.03,1.35090584]
[1728825052888,6.753,148.09,148.02,20.0]
[1728825062306,22.7179,148.1,148.03,25.1277891]
[1728825062505,22.7179,148.1,148.04,20.0]
[1728825066806,29.4701,148.1,148.04,20.0]
[1728825067819,29.4701,148.1,148.04,21.35080176]
[1728825068030,29.4701,148.1,148.04,20.0]
[1728825069139,22.7179,148.1,148.05,1.35079943]
[1728825070240,22.7179,148.1,148.04,20.0]
[1728825079558,6.7526,148.09,148.03,20.0]
[1728825087747,29.4702,148.1,148.03,20.0]
[1728825088855,29.4702,148.1,148.03,21.35088956]
[1728825090351,22.7179,148.1,148.04,23.776884]
[1728825091354,22.7179,148.1,148.03,21.35088956]
[1728825091355,29.4704,148.1,148.03,20.0]
[1728825100360,29.4704,148.1,148.03,21.35088031]
[1728825101863,29.4704,148.1,148.03,21.35087972]
[1728825102535,29.4704,148.1,148.03,20.0]
[1728825104959,22.7179,148.1,148.03,21.35087823]
[1728825106042,22.7179,148.1,148.03,20.0]
[1728825106983,29.4703,148.1,148.03,20.0]
[1728825107847,29.4703,148.1,148.03,21.3508993]
[1728825110063,29.4703,148.1,148.03,20.0]
[1728825118374,6.7527,148.09,148.03,20.0]
[1728825119875,22.7179,148.1,148.03,20.0]
[1728825120172,22.7179,148.1,148.04,1.35086206]
[1728825120550,22.7179,148.1,148.03,21.35082708]
[1728825121779,22.7179,148.1,148.03,20.0]
[1728825122883,16.5863,148.1,148.04,1.35079894]
[1728825123096,21.1101,148.14,148.07,23.776884]
[1728825123384,21.1101,148.14,148.08,20.0]
[1728825127695,21.1101,148.14,148.09,1.35043078]
[1728825127909,21.1101,148.14,148.08,20.0]
[1728825128182,15.0484,148.14,148.08,21.35034908]
[1728825129761,15.0484,148.14,148.08,20.0]
[1728825130885,15.0484,148.14,148.08,21.35039631]
[1728825131391,15.0484,148.14,148.08,20.0]
[1728825131684,15.0484,148.14,148.06,20.0]
[1728825131886,6.7512,148.12,148.05,20.0]
[1728825133459,6.7512,148.12,148.06,1.35063309]
[1728825136464,15.0484,148.14,148.06,1.35063309]
[1728825136863,6.7509,148.13,148.05,20.0]
[1728825139891,6.7515,148.12,148.05,20.0]
[1728825141003,6.7515,148.12,148.06,1.35062695]
[1728825141386,15.0484,148.14,148.06,1.35062695]
[1728825141602,21.7989,148.14,148.06,1.35062695]
[1728825141808,21.7989,148.14,148.07,20.0]
[1728825148205,15.0484,148.14,148.07,20.0]
[1728825148397,6.7513,148.12,148.07,20.0]
[1728825148997,6.7513,148.12,148.05,23.776884]
[1728825149500,6.7513,148.12,148.06,20.0]
[1728825155307,6.7513,148.12,148.06,21.35061785]
[1728825160324,6.7513,148.12,148.06,20.0]
[1728825162719,6.7513,148.12,148.06,21.35061378]
[1728825163223,6.7513,148.12,148.06,20.0]
[1728825164216,6.7513,148.12,148.05,20.0]
[1728825166312,6.7513,148.12,148.05,21.35064377]
[1728825166717,6.7513,148.12,148.05,20.0]
[1728825167838,6.7523,148.1,148.04,6.09426642]
[1728825168006,6.4181,148.08,148.01,6.99069197]
[1728825168207,6.7543,148.06,147.95,17.6662]
[1728825168428,6.4181,148.08,147.95,25.22411295]
[1728825168429,6.7544,148.05,147.95,25.22411295]
[1728825168622,6.7541,148.06,147.95,25.22411295]
[1728825168823,6.7541,148.06,147.96,7.55791295]
[1728825169336,6.7541,148.06,147.97,20.0]
[1728825171511,6.7541,148.06,147.99,20.0]
[1728825174407,6.4181,148.08,147.99,20.0]
[1728825174612,6.7536,148.07,148.0,1.35121131]
[1728825175212,6.7536,148.07,147.99,21.35121032]